[Event "*** Titled Tuesday Blitz AM"]
[Site "Chess.com"]
[Date "2020.01.07"]
[Round "8"]
[White "manitodeplomo"]
[Black "Gahan-MG"]
[Result "1-0"]
[WhiteElo "2688"]
[BlackElo "2494"]
[TimeControl "180+2"]
[EndTime "10:52:30 PST"]
[Termination "manitodeplomo won by resignation"]

1. e4 {[%clk 0:03:01.9]} 1... Nf6 {[%clk 0:02:59.9]} 2. e5 {[%clk 0:03:02.1]}
2... Nd5 {[%clk 0:03:01.2]} 3. d4 {[%clk 0:03:03.1]} 3... d6 {[%clk 0:03:02.4]}
4. c4 {[%clk 0:03:03.3]} 4... Nb6 {[%clk 0:03:03.2]} 5. exd6 {[%clk 0:03:04.9]}
5... exd6 {[%clk 0:03:03.2]} 6. Nc3 {[%clk 0:03:06.8]} 6... Be7 {[%clk
0:03:04.6]} 7. Be3 {[%clk 0:03:08.2]} 7... O-O {[%clk 0:03:06.2]} 8. Qf3 {[%clk
0:03:09.2]} 8... Bf6 {[%clk 0:03:06.2]} 9. O-O-O {[%clk 0:03:07.6]} 9... Nc6
{[%clk 0:03:07.4]} 10. Ne4 {[%clk 0:03:07.6]} 10... Be7 {[%clk 0:03:02.4]} 11.
Nc3 {[%clk 0:03:05.3]} 11... Bf6 {[%clk 0:02:48.9]} 12. h4 {[%clk 0:02:58]}
12... Re8 {[%clk 0:02:47.4]} 13. Ne4 {[%clk 0:02:51.8]} 13... d5 {[%clk
0:02:40.2]} 14. Nxf6+ {[%clk 0:02:43.7]} 14... Qxf6 {[%clk 0:02:41]} 15. Qxf6
{[%clk 0:02:44.2]} 15... gxf6 {[%clk 0:02:42.9]} 16. c5 {[%clk 0:02:42.3]} 16...
Nd7 {[%clk 0:02:34.7]} 17. Nh3 {[%clk 0:02:38.3]} 17... Nf8 {[%clk 0:02:32]} 18.
Nf4 {[%clk 0:02:39.3]} 18... Be6 {[%clk 0:02:32.5]} 19. g4 {[%clk 0:02:11]}
19... Kh8 {[%clk 0:02:22.5]} 20. Be2 {[%clk 0:02:06.9]} 20... Ne7 {[%clk
0:02:18.3]} 21. Nh5 {[%clk 0:02:01]} 21... Ng8 {[%clk 0:02:13]} 22. g5 {[%clk
0:01:59.2]} 22... fxg5 {[%clk 0:02:09.3]} 23. hxg5 {[%clk 0:02:01.1]} 23... Bf5
{[%clk 0:02:06.4]} 24. Ng3 {[%clk 0:01:56.8]} 24... Bg6 {[%clk 0:02:06.7]} 25.
Kd2 {[%clk 0:01:53.5]} 25... Re7 {[%clk 0:01:57.6]} 26. f4 {[%clk 0:01:44.3]}
26... Rae8 {[%clk 0:01:57.9]} 27. Bf2 {[%clk 0:01:44]} 27... Be4 {[%clk
0:01:46]} 28. Rhe1 {[%clk 0:01:16.5]} 28... Ng6 {[%clk 0:01:45.6]} 29. f5 {[%clk
0:01:11.2]} 29... Nh4 {[%clk 0:01:39.7]} 30. f6 {[%clk 0:01:12.1]} 30... Re6
{[%clk 0:01:37.2]} 31. Bg4 {[%clk 0:01:12.6]} 31... Nf3+ {[%clk 0:01:33.9]} 32.
Bxf3 {[%clk 0:01:11.6]} 32... Bxf3 {[%clk 0:01:35.8]} 33. Rxe6 {[%clk
0:01:08.3]} 33... Rxe6 {[%clk 0:01:37.7]} 34. Re1 {[%clk 0:00:53.3]} 34... Rxe1
{[%clk 0:01:37.6]} 35. Bxe1 {[%clk 0:00:55.2]} 35... h6 {[%clk 0:01:37]} 36. Ke3
{[%clk 0:00:56.5]} 36... Bd1 {[%clk 0:01:27.3]} 37. Kf4 {[%clk 0:00:55.6]} 37...
hxg5+ {[%clk 0:01:22.8]} 38. Kxg5 {[%clk 0:00:56.9]} 38... Kh7 {[%clk 0:01:21]}
39. b4 {[%clk 0:00:49.7]} 39... Nh6 {[%clk 0:01:16.9]} 40. Bf2 {[%clk
0:00:36.6]} 40... Ng4 {[%clk 0:01:03.9]} 41. Bg1 {[%clk 0:00:37.2]} 41... Nh6
{[%clk 0:00:58.5]} 42. Nf1 {[%clk 0:00:28.5]} 42... Bc2 {[%clk 0:00:51.2]} 43.
Ne3 {[%clk 0:00:26.5]} 43... Be4 {[%clk 0:00:52.4]} 44. Bh2 {[%clk 0:00:27.3]}
44... c6 {[%clk 0:00:52.9]} 45. Bf4 {[%clk 0:00:27]} 45... Bd3 {[%clk
0:00:46.3]} 46. a4 {[%clk 0:00:23.3]} 46... a6 {[%clk 0:00:42.6]} 47. a5 {[%clk
0:00:21.3]} 47... Be4 {[%clk 0:00:38.5]} 48. Bd6 {[%clk 0:00:22]} 48... Bd3
{[%clk 0:00:24.5]} 49. Bf8 {[%clk 0:00:22.7]} 49... Ng8 {[%clk 0:00:25.1]} 50.
Bg7 {[%clk 0:00:23.6]} 50... Be4 {[%clk 0:00:20.6]} 51. Ng4 {[%clk 0:00:24]}
51... Bd3 {[%clk 0:00:16]} 52. Ne5 {[%clk 0:00:24.9]} 52... Bg6 {[%clk 0:00:15]}
53. Nd7 {[%clk 0:00:20.1]} 53... Nxf6 {[%clk 0:00:07.3]} 54. Bxf6 {[%clk
0:00:19.3]} 54... Kg8 {[%clk 0:00:08.4]} 55. Be5 {[%clk 0:00:18.6]} 55... Be4
{[%clk 0:00:08.3]} 56. Kf6 {[%clk 0:00:19.7]} 56... Bd3 {[%clk 0:00:08.3]} 57.
Bf4 {[%clk 0:00:19.5]} 57... Be4 {[%clk 0:00:08.9]} 58. Ne5 {[%clk 0:00:19.6]}
58... Bc2 {[%clk 0:00:05]} 59. Nxf7 {[%clk 0:00:20.5]} 1-0

[Event "*** Titled Tuesday Blitz AM"]
[Site "Chess.com"]
[Date "2020.01.07"]
[Round "8"]
[White "Blagorod"]
[Black "anand-carlsen"]
[Result "0-1"]
[WhiteElo "2102"]
[BlackElo "2349"]
[TimeControl "180+2"]
[EndTime "10:52:42 PST"]
[Termination "anand-carlsen won by resignation"]

1. e4 {[%clk 0:03:01.9]} 1... c5 {[%clk 0:02:59.9]} 2. Nc3 {[%clk 0:03:01.5]}
2... Nc6 {[%clk 0:03:00.1]} 3. g3 {[%clk 0:03:02.8]} 3... g6 {[%clk 0:03:00.7]}
4. Bg2 {[%clk 0:03:04.1]} 4... Bg7 {[%clk 0:03:01.7]} 5. d3 {[%clk 0:03:02.2]}
5... d6 {[%clk 0:02:58.5]} 6. f4 {[%clk 0:03:01.4]} 6... e6 {[%clk 0:02:58]} 7.
Be3 {[%clk 0:02:54.7]} 7... Nge7 {[%clk 0:02:59.1]} 8. Nf3 {[%clk 0:02:56]} 8...
O-O {[%clk 0:02:58.7]} 9. O-O {[%clk 0:02:57.6]} 9... Nd4 {[%clk 0:02:55]} 10.
e5 {[%clk 0:02:58.2]} 10... Nef5 {[%clk 0:02:47.7]} 11. Bf2 {[%clk 0:02:58.8]}
11... Nxf3+ {[%clk 0:02:45.7]} 12. Qxf3 {[%clk 0:02:59.3]} 12... Nd4 {[%clk
0:02:47]} 13. Qd1 {[%clk 0:03:00.5]} 13... dxe5 {[%clk 0:02:47.5]} 14. fxe5
{[%clk 0:03:01.7]} 14... Bxe5 {[%clk 0:02:49.4]} 15. Ne4 {[%clk 0:03:01.1]}
15... Nc6 {[%clk 0:02:48.5]} 16. c3 {[%clk 0:02:40.8]} 16... f5 {[%clk
0:02:38.5]} 17. Nxc5 {[%clk 0:02:12.8]} 17... Bd6 {[%clk 0:02:38.3]} 18. Re1
{[%clk 0:02:04.3]} 18... Re8 {[%clk 0:02:34.5]} 19. Nb3 {[%clk 0:01:23.8]} 19...
e5 {[%clk 0:02:32.9]} 20. d4 {[%clk 0:01:21.4]} 20... e4 {[%clk 0:02:32]} 21. g4
{[%clk 0:01:12]} 21... Qc7 {[%clk 0:02:19.7]} 22. h3 {[%clk 0:01:09.8]} 22...
Bf4 {[%clk 0:02:08.8]} 23. gxf5 {[%clk 0:01:01.7]} 23... gxf5 {[%clk 0:02:08.1]}
24. Qh5 {[%clk 0:01:01.8]} 24... Re7 {[%clk 0:01:57.7]} 25. Bh4 {[%clk
0:00:53.4]} 25... Rf7 {[%clk 0:01:38.1]} 26. Nc5 {[%clk 0:00:38.8]} 26... b6
{[%clk 0:01:32]} 27. Nxe4 {[%clk 0:00:31.8]} 27... fxe4 {[%clk 0:01:32]} 28.
Bxe4 {[%clk 0:00:32.7]} 28... Bd7 {[%clk 0:01:32.5]} 29. Bd5 {[%clk 0:00:33]}
29... Rf8 {[%clk 0:01:29.2]} 30. Re2 {[%clk 0:00:23.6]} 30... Bc8 {[%clk
0:00:58.2]} 31. Bxf7+ {[%clk 0:00:21.2]} 31... Qxf7 {[%clk 0:00:55.3]} 32. Qxf7+
{[%clk 0:00:21.7]} 32... Kxf7 {[%clk 0:00:46.1]} 33. Rf2 {[%clk 0:00:21.6]}
33... Kg6 {[%clk 0:00:43.2]} 34. Kh1 {[%clk 0:00:16.5]} 34... Bb7 {[%clk
0:00:33.5]} 35. Rg1+ {[%clk 0:00:15.6]} 35... Kh5 {[%clk 0:00:33.6]} 36. Bg3
{[%clk 0:00:14]} 36... Nxd4+ {[%clk 0:00:28.3]} 37. Kh2 {[%clk 0:00:15.6]} 37...
Nf3+ {[%clk 0:00:16.2]} 38. Rxf3 {[%clk 0:00:11.7]} 38... Bxf3 {[%clk 0:00:18]}
39. Rf1 {[%clk 0:00:09.4]} 39... Rg8 {[%clk 0:00:04.6]} 40. Rxf3 {[%clk
0:00:08.3]} 40... Rxg3 {[%clk 0:00:05.5]} 41. Rxg3 {[%clk 0:00:08.9]} 41... Kh4
{[%clk 0:00:05.5]} 42. b3 {[%clk 0:00:05.4]} 42... Bxg3+ {[%clk 0:00:07.4]} 43.
Kg2 {[%clk 0:00:06.7]} 43... Be5 {[%clk 0:00:08.2]} 44. c4 {[%clk 0:00:07.6]}
44... Bd6 {[%clk 0:00:09.6]} 45. Kf3 {[%clk 0:00:06.4]} 45... Kxh3 {[%clk
0:00:10.4]} 46. Ke4 {[%clk 0:00:08.1]} 46... h5 {[%clk 0:00:10.5]} 47. Kd5
{[%clk 0:00:09.6]} 47... Bb4 {[%clk 0:00:11.6]} 48. a4 {[%clk 0:00:07.6]} 48...
a5 {[%clk 0:00:08.5]} 49. Kc6 {[%clk 0:00:08.4]} 49... Bc5 {[%clk 0:00:09.8]}
50. Kb5 {[%clk 0:00:06.4]} 50... h4 {[%clk 0:00:09.7]} 51. b4 {[%clk 0:00:07.8]}
51... Bxb4 {[%clk 0:00:11]} 52. Kxb6 {[%clk 0:00:08.9]} 52... Kg2 {[%clk
0:00:12.1]} 53. c5 {[%clk 0:00:10.5]} 53... h3 {[%clk 0:00:12.2]} 54. c6 {[%clk
0:00:11.7]} 54... Bd6 {[%clk 0:00:13.4]} 55. Kxa5 {[%clk 0:00:13]} 55... h2
{[%clk 0:00:13.9]} 56. Kb6 {[%clk 0:00:14.5]} 56... h1=Q {[%clk 0:00:14.5]} 0-1

[Event "*** Titled Tuesday Blitz AM"]
[Site "Chess.com"]
[Date "2020.01.07"]
[Round "8"]
[White "nihalsarin"]
[Black "Alexander_Donchenko"]
[Result "0-1"]
[WhiteElo "3039"]
[BlackElo "2748"]
[TimeControl "180+2"]
[EndTime "10:52:50 PST"]
[Termination "Alexander_Donchenko won by resignation"]

1. Nf3 {[%clk 0:03:01.9]} 1... Nf6 {[%clk 0:03:00.4]} 2. c4 {[%clk 0:03:03.1]}
2... e6 {[%clk 0:03:00.8]} 3. Nc3 {[%clk 0:03:00.4]} 3... d5 {[%clk 0:03:01.5]}
4. e3 {[%clk 0:03:02]} 4... dxc4 {[%clk 0:03:00.4]} 5. Bxc4 {[%clk 0:03:02.7]}
5... a6 {[%clk 0:03:01.6]} 6. d4 {[%clk 0:02:58.3]} 6... b5 {[%clk 0:03:02.2]}
7. Be2 {[%clk 0:02:45.7]} 7... Bb7 {[%clk 0:03:03.1]} 8. O-O {[%clk 0:02:44]}
8... Nbd7 {[%clk 0:03:04.2]} 9. b3 {[%clk 0:02:44.9]} 9... c5 {[%clk 0:03:04.6]}
10. Bb2 {[%clk 0:02:46.4]} 10... Bd6 {[%clk 0:03:04.1]} 11. a4 {[%clk
0:02:29.7]} 11... b4 {[%clk 0:03:04.1]} 12. Nb1 {[%clk 0:02:31.3]} 12... O-O
{[%clk 0:03:01.5]} 13. Nbd2 {[%clk 0:02:32.7]} 13... Qe7 {[%clk 0:02:49.8]} 14.
Nc4 {[%clk 0:02:30.6]} 14... Bc7 {[%clk 0:02:50.8]} 15. Nfe5 {[%clk 0:02:07]}
15... Rfd8 {[%clk 0:02:44.4]} 16. Nxd7 {[%clk 0:01:54.4]} 16... Rxd7 {[%clk
0:02:42]} 17. Bf3 {[%clk 0:01:56]} 17... Nd5 {[%clk 0:02:28]} 18. Qc2 {[%clk
0:01:53.6]} 18... Qh4 {[%clk 0:01:59.6]} 19. g3 {[%clk 0:01:50.3]} 19... Qh3
{[%clk 0:01:59.6]} 20. dxc5 {[%clk 0:01:33.3]} 20... Rad8 {[%clk 0:00:34.5]} 21.
Rac1 {[%clk 0:00:39.7]} 21... Nf6 {[%clk 0:00:21]} 22. e4 {[%clk 0:00:08.5]}
22... Bxe4 {[%clk 0:00:17.6]} 23. Qxe4 {[%clk 0:00:05.1]} 23... Nxe4 {[%clk
0:00:18.6]} 24. Bxe4 {[%clk 0:00:07]} 24... Qg4 {[%clk 0:00:11.3]} 25. Bg2
{[%clk 0:00:07]} 25... Rd1 {[%clk 0:00:11.4]} 26. Ne3 {[%clk 0:00:08.6]} 26...
Rxf1+ {[%clk 0:00:10.5]} 27. Bxf1 {[%clk 0:00:10.5]} 27... Qe4 {[%clk
0:00:06.9]} 28. Bxa6 {[%clk 0:00:05.3]} 28... Rd2 {[%clk 0:00:07.7]} 29. Ba1
{[%clk 0:00:06.6]} 29... Qf3 {[%clk 0:00:06.1]} 30. Rf1 {[%clk 0:00:07.9]} 30...
h5 {[%clk 0:00:06]} 31. Ng2 {[%clk 0:00:09]} 31... Ra2 {[%clk 0:00:06.2]} 32.
Bc4 {[%clk 0:00:06.8]} 32... g5 {[%clk 0:00:06.1]} 33. Bd4 {[%clk 0:00:05.6]}
33... h4 {[%clk 0:00:06.8]} 34. Ne1 {[%clk 0:00:04.9]} 34... Qe4 {[%clk
0:00:06.8]} 35. Be3 {[%clk 0:00:06.4]} 35... h3 {[%clk 0:00:07.1]} 36. Bd3
{[%clk 0:00:05.7]} 36... Qd5 {[%clk 0:00:07.5]} 37. Bc4 {[%clk 0:00:07.2]} 37...
Qe4 {[%clk 0:00:08.6]} 38. Bd3 {[%clk 0:00:08.3]} 38... Qa8 {[%clk 0:00:09.7]}
39. f3 {[%clk 0:00:07]} 39... Qd5 {[%clk 0:00:09.9]} 40. Bc4 {[%clk 0:00:07.8]}
40... Qe5 {[%clk 0:00:11]} 41. Bf2 {[%clk 0:00:09.3]} 41... Rxf2 {[%clk
0:00:09.5]} 42. Kxf2 {[%clk 0:00:07.8]} 42... Qxc5+ {[%clk 0:00:10.8]} 43. Ke2
{[%clk 0:00:09.4]} 43... Bb6 {[%clk 0:00:11.7]} 44. Nd3 {[%clk 0:00:06.5]} 44...
Qe3+ {[%clk 0:00:12.1]} 45. Kd1 {[%clk 0:00:08.1]} 45... Bd4 {[%clk 0:00:12.3]}
46. f4 {[%clk 0:00:05.8]} 46... Bc3 {[%clk 0:00:12.3]} 47. Rf2 {[%clk
0:00:07.4]} 47... g4 {[%clk 0:00:11.7]} 48. a5 {[%clk 0:00:07.6]} 48... Qe4
{[%clk 0:00:09.5]} 49. a6 {[%clk 0:00:04.7]} 49... Qh1+ {[%clk 0:00:10.3]} 50.
Kc2 {[%clk 0:00:06]} 50... Bd4 {[%clk 0:00:10.7]} 51. Re2 {[%clk 0:00:06.3]}
51... Kg7 {[%clk 0:00:11.5]} 52. Nxb4 {[%clk 0:00:04.9]} 52... Qa1 {[%clk
0:00:09.6]} 53. Nd3 {[%clk 0:00:05]} 53... Qc3+ {[%clk 0:00:08.4]} 54. Kd1
{[%clk 0:00:06.1]} 54... Qa1+ {[%clk 0:00:09.9]} 55. Nc1 {[%clk 0:00:07]} 55...
Bb2 {[%clk 0:00:07.9]} 56. Rc2 {[%clk 0:00:08.1]} 56... Bxc1 {[%clk 0:00:08.8]}
57. Rxc1 {[%clk 0:00:10]} 57... Qd4+ {[%clk 0:00:10.1]} 58. Kc2 {[%clk
0:00:08.7]} 58... Qf2+ {[%clk 0:00:11.1]} 59. Kb1 {[%clk 0:00:09.9]} 59... Qxh2
{[%clk 0:00:12]} 60. Bd5 {[%clk 0:00:07.9]} 60... Qxg3 {[%clk 0:00:12.9]} 61. a7
{[%clk 0:00:06.7]} 61... Qd3+ {[%clk 0:00:13.7]} 62. Ka2 {[%clk 0:00:02.8]}
62... Qxd5 {[%clk 0:00:15.1]} 63. Rc8 {[%clk 0:00:04.4]} 63... Qa5+ {[%clk
0:00:16]} 0-1

[Event "*** Titled Tuesday Blitz AM"]
[Site "Chess.com"]
[Date "2020.01.07"]
[Round "8"]
[White "Manukyan_Artak"]
[Black "ChessQueen"]
[Result "1/2-1/2"]
[WhiteElo "2459"]
[BlackElo "2657"]
[TimeControl "180+2"]
[EndTime "10:53:10 PST"]
[Termination "Game drawn by repetition"]

1. e4 {[%clk 0:03:01.9]} 1... e5 {[%clk 0:02:58.8]} 2. Nf3 {[%clk 0:03:03]} 2...
Nc6 {[%clk 0:02:59.8]} 3. d4 {[%clk 0:03:04]} 3... exd4 {[%clk 0:03:00.3]} 4.
Nxd4 {[%clk 0:03:05.9]} 4... Nf6 {[%clk 0:03:01.7]} 5. Nxc6 {[%clk 0:03:06.9]}
5... bxc6 {[%clk 0:03:03.2]} 6. e5 {[%clk 0:03:08.3]} 6... Qe7 {[%clk
0:03:04.8]} 7. Qe2 {[%clk 0:03:09.5]} 7... Nd5 {[%clk 0:03:06.2]} 8. c4 {[%clk
0:03:10.8]} 8... Nb6 {[%clk 0:03:07.4]} 9. b3 {[%clk 0:03:09.6]} 9... a5 {[%clk
0:03:06.6]} 10. a4 {[%clk 0:02:58.6]} 10... Qb4+ {[%clk 0:02:49]} 11. Nd2 {[%clk
0:02:58.2]} 11... Qc3 {[%clk 0:02:46.2]} 12. Rb1 {[%clk 0:02:56.2]} 12... Bb4
{[%clk 0:02:46.5]} 13. Qd3 {[%clk 0:02:41.6]} 13... Qxe5+ {[%clk 0:02:44.2]} 14.
Be2 {[%clk 0:02:42.9]} 14... O-O {[%clk 0:02:39.6]} 15. O-O {[%clk 0:02:43.5]}
15... d5 {[%clk 0:02:38.7]} 16. Nf3 {[%clk 0:02:38.3]} 16... Qe4 {[%clk
0:02:29.2]} 17. Qxe4 {[%clk 0:02:31.1]} 17... dxe4 {[%clk 0:02:28.8]} 18. Nd4
{[%clk 0:02:32.4]} 18... c5 {[%clk 0:02:10.4]} 19. Nb5 {[%clk 0:02:22.7]} 19...
Bf5 {[%clk 0:01:44.1]} 20. Be3 {[%clk 0:01:22.2]} 20... c6 {[%clk 0:01:24.1]}
21. Nd6 {[%clk 0:01:21.8]} 21... Bg6 {[%clk 0:01:25.2]} 22. g4 {[%clk
0:01:06.2]} 22... Rad8 {[%clk 0:01:20.2]} 23. Rbd1 {[%clk 0:01:06.1]} 23... Rd7
{[%clk 0:01:14.6]} 24. h4 {[%clk 0:00:46.6]} 24... f5 {[%clk 0:00:45.1]} 25. h5
{[%clk 0:00:37.8]} 25... f4 {[%clk 0:00:42.1]} 26. hxg6 {[%clk 0:00:33.4]} 26...
hxg6 {[%clk 0:00:43.2]} 27. Nxe4 {[%clk 0:00:30.3]} 27... fxe3 {[%clk
0:00:38.4]} 28. fxe3 {[%clk 0:00:23.4]} 28... Re8 {[%clk 0:00:35.4]} 29. Ng5
{[%clk 0:00:17.4]} 29... Rxe3 {[%clk 0:00:32.8]} 30. Rxd7 {[%clk 0:00:18.2]}
30... Nxd7 {[%clk 0:00:34.7]} 31. Rd1 {[%clk 0:00:16.6]} 31... Nf8 {[%clk
0:00:26]} 32. Kf2 {[%clk 0:00:15.1]} 32... Re5 {[%clk 0:00:25.1]} 33. Nf3 {[%clk
0:00:16.3]} 33... Re6 {[%clk 0:00:22.2]} 34. Rd8 {[%clk 0:00:17]} 34... Bc3
{[%clk 0:00:21.5]} 35. Ng5 {[%clk 0:00:16]} 35... Rf6+ {[%clk 0:00:16.2]} 36.
Kg2 {[%clk 0:00:15.9]} 36... Be5 {[%clk 0:00:16.7]} 37. Bf3 {[%clk 0:00:15.2]}
37... Bf4 {[%clk 0:00:17.9]} 38. Ne4 {[%clk 0:00:15.4]} 38... Re6 {[%clk
0:00:13.2]} 39. Nxc5 {[%clk 0:00:16.6]} 39... Rd6 {[%clk 0:00:14.5]} 40. Rxd6
{[%clk 0:00:15.9]} 40... Bxd6 {[%clk 0:00:16.4]} 41. Nb7 {[%clk 0:00:16.7]}
41... Bc7 {[%clk 0:00:15.5]} 42. Bxc6 {[%clk 0:00:17.4]} 42... g5 {[%clk
0:00:16.4]} 43. Be4 {[%clk 0:00:17.5]} 43... Nd7 {[%clk 0:00:17.2]} 44. Bf5
{[%clk 0:00:15.6]} 44... Ne5 {[%clk 0:00:17.4]} 45. Kf2 {[%clk 0:00:16.2]} 45...
Kf7 {[%clk 0:00:16.7]} 46. Ke2 {[%clk 0:00:16.7]} 46... g6 {[%clk 0:00:16.3]}
47. Bc8 {[%clk 0:00:17.7]} 47... Ke7 {[%clk 0:00:17]} 48. Ke3 {[%clk 0:00:17.9]}
48... Nc6 {[%clk 0:00:15]} 49. Ke4 {[%clk 0:00:17.2]} 49... Nb4 {[%clk
0:00:16.4]} 50. Nc5 {[%clk 0:00:16.8]} 50... Bf4 {[%clk 0:00:13.1]} 51. Nd3
{[%clk 0:00:17]} 51... Bd2 {[%clk 0:00:11.9]} 52. Nxb4 {[%clk 0:00:17.5]} 52...
Bxb4 {[%clk 0:00:13.2]} 53. Kd5 {[%clk 0:00:19.4]} 53... Kd8 {[%clk 0:00:14]}
54. Be6 {[%clk 0:00:20.1]} 54... Kc7 {[%clk 0:00:15.2]} 55. Bf7 {[%clk 0:00:21]}
55... Kb6 {[%clk 0:00:16.3]} 56. Bxg6 {[%clk 0:00:22.4]} 56... Bc5 {[%clk
0:00:17.7]} 57. Be4 {[%clk 0:00:23.4]} 57... Bb4 {[%clk 0:00:18.9]} 58. Bf5
{[%clk 0:00:22.2]} 58... Bc5 {[%clk 0:00:20.1]} 59. Bd7 {[%clk 0:00:23.3]} 59...
Bb4 {[%clk 0:00:20.3]} 60. Bb5 {[%clk 0:00:24.3]} 60... Bc5 {[%clk 0:00:21.4]}
61. Ke4 {[%clk 0:00:25]} 61... Bb4 {[%clk 0:00:22.4]} 62. Kf5 {[%clk 0:00:26.3]}
62... Bd2 {[%clk 0:00:23.5]} 63. Ke6 {[%clk 0:00:26.8]} 63... Kc5 {[%clk
0:00:24.5]} 64. Kd7 {[%clk 0:00:27.8]} 64... Bc3 {[%clk 0:00:24.5]} 65. Kc7
{[%clk 0:00:28.8]} 65... Bb4 {[%clk 0:00:25.8]} 66. Kb7 {[%clk 0:00:29.6]} 66...
Bc3 {[%clk 0:00:27]} 67. Ka6 {[%clk 0:00:30.8]} 67... Bb4 {[%clk 0:00:28.2]} 68.
Bd7 {[%clk 0:00:32]} 68... Bc3 {[%clk 0:00:28.9]} 69. Bf5 {[%clk 0:00:33.1]}
69... Bb4 {[%clk 0:00:30.1]} 70. Bc2 {[%clk 0:00:33.7]} 70... Bc3 {[%clk
0:00:31.3]} 71. Bd1 {[%clk 0:00:35.4]} 71... Bb4 {[%clk 0:00:32.4]} 72. Kb7
{[%clk 0:00:36.5]} 72... Bc3 {[%clk 0:00:33.6]} 73. Kc7 {[%clk 0:00:37.8]} 73...
Bb4 {[%clk 0:00:34.9]} 74. Kd7 {[%clk 0:00:39]} 74... Bc3 {[%clk 0:00:36.2]} 75.
Ke6 {[%clk 0:00:40.2]} 75... Bb4 {[%clk 0:00:36.7]} 76. Ke5 {[%clk 0:00:41.7]}
76... Bc3+ {[%clk 0:00:37.3]} 77. Ke4 {[%clk 0:00:42.8]} 77... Bb4 {[%clk
0:00:36.7]} 78. Ke3 {[%clk 0:00:44.1]} 78... Bc3 {[%clk 0:00:37.4]} 79. Ke4
{[%clk 0:00:45.4]} 79... Bb4 {[%clk 0:00:37.8]} 80. Kf5 {[%clk 0:00:47.3]} 80...
Bd2 {[%clk 0:00:38.8]} 81. Ke4 {[%clk 0:00:48.1]} 81... Bb4 {[%clk 0:00:39.5]}
1/2-1/2

[Event "*** Titled Tuesday Blitz AM"]
[Site "Chess.com"]
[Date "2020.01.07"]
[Round "8"]
[White "petrpalachev"]
[Black "Jabberwockiez"]
[Result "0-1"]
[WhiteElo "2766"]
[BlackElo "2312"]
[TimeControl "180+2"]
[EndTime "10:53:33 PST"]
[Termination "Jabberwockiez won on time"]

1. d4 {[%clk 0:03:01.9]} 1... Nf6 {[%clk 0:03:00]} 2. c4 {[%clk 0:03:03.1]} 2...
e6 {[%clk 0:03:00.7]} 3. Nc3 {[%clk 0:03:03.8]} 3... Bb4 {[%clk 0:03:01.9]} 4.
Qc2 {[%clk 0:03:04]} 4... O-O {[%clk 0:03:02.4]} 5. a3 {[%clk 0:03:04.9]} 5...
Bxc3+ {[%clk 0:03:03.4]} 6. Qxc3 {[%clk 0:03:06.8]} 6... b6 {[%clk 0:03:04.1]}
7. Bg5 {[%clk 0:03:06.6]} 7... Bb7 {[%clk 0:03:05.2]} 8. e3 {[%clk 0:03:04]}
8... d6 {[%clk 0:03:06.3]} 9. Nf3 {[%clk 0:02:58.7]} 9... Nbd7 {[%clk
0:03:06.7]} 10. Bd3 {[%clk 0:02:55.2]} 10... h6 {[%clk 0:03:06.4]} 11. Bh4
{[%clk 0:02:55.8]} 11... Rc8 {[%clk 0:03:07.9]} 12. Nd2 {[%clk 0:02:53.5]} 12...
c5 {[%clk 0:03:08.6]} 13. O-O {[%clk 0:02:48.8]} 13... cxd4 {[%clk 0:03:05.8]}
14. Qxd4 {[%clk 0:02:49.8]} 14... Ne5 {[%clk 0:03:03.2]} 15. Be2 {[%clk
0:02:49.6]} 15... Ng6 {[%clk 0:02:56.9]} 16. Bxf6 {[%clk 0:02:48.7]} 16... gxf6
{[%clk 0:02:55]} 17. Rac1 {[%clk 0:02:42.2]} 17... Kh7 {[%clk 0:02:52.2]} 18.
Bf3 {[%clk 0:02:39.5]} 18... e5 {[%clk 0:02:36.8]} 19. Qd3 {[%clk 0:02:35.7]}
19... Ba6 {[%clk 0:02:16.9]} 20. Rfd1 {[%clk 0:02:35.5]} 20... Rg8 {[%clk
0:02:00.1]} 21. Ne4 {[%clk 0:02:25.7]} 21... f5 {[%clk 0:01:50.5]} 22. Nxd6
{[%clk 0:02:15.5]} 22... e4 {[%clk 0:01:50.8]} 23. Bxe4 {[%clk 0:02:06.6]} 23...
fxe4 {[%clk 0:01:48.6]} 24. Qxe4 {[%clk 0:02:07.1]} 24... Qh4 {[%clk 0:01:13.1]}
25. Qf3 {[%clk 0:01:31.7]} 25... Rc7 {[%clk 0:01:08.6]} 26. Rd4 {[%clk
0:01:14.5]} 26... Qe7 {[%clk 0:01:00.4]} 27. Nf5 {[%clk 0:01:10.6]} 27... Qg5
{[%clk 0:00:56.3]} 28. h4 {[%clk 0:01:01.1]} 28... Qf6 {[%clk 0:00:50.2]} 29.
Rd6 {[%clk 0:00:32.4]} 29... Nxh4 {[%clk 0:00:46]} 30. Rxf6 {[%clk 0:00:31.7]}
30... Nxf3+ {[%clk 0:00:46.2]} 31. Kh1 {[%clk 0:00:32.7]} 31... Rg6 {[%clk
0:00:46.9]} 32. Rxg6 {[%clk 0:00:22]} 32... fxg6 {[%clk 0:00:48.8]} 33. Nd6
{[%clk 0:00:18.8]} 33... Ne5 {[%clk 0:00:44.2]} 34. b3 {[%clk 0:00:20.3]} 34...
Rc6 {[%clk 0:00:40.7]} 35. Ne4 {[%clk 0:00:19.6]} 35... Re6 {[%clk 0:00:39.2]}
36. f3 {[%clk 0:00:16.1]} 36... Bb7 {[%clk 0:00:37.3]} 37. Nf2 {[%clk
0:00:15.5]} 37... g5 {[%clk 0:00:35.2]} 38. Rd1 {[%clk 0:00:13.4]} 38... Kg6
{[%clk 0:00:33.6]} 39. Rd8 {[%clk 0:00:12.1]} 39... Nc6 {[%clk 0:00:28.2]} 40.
Rd7 {[%clk 0:00:11.8]} 40... Re7 {[%clk 0:00:21.5]} 41. Rd6+ {[%clk 0:00:12.2]}
41... Kg7 {[%clk 0:00:21.5]} 42. e4 {[%clk 0:00:12]} 42... Ne5 {[%clk
0:00:21.4]} 43. Kg1 {[%clk 0:00:07.7]} 43... Rd7 {[%clk 0:00:22.3]} 44. Re6
{[%clk 0:00:06]} 44... Nd3 {[%clk 0:00:22]} 45. Ng4 {[%clk 0:00:06.4]} 45... h5
{[%clk 0:00:20.9]} 46. Nf6 {[%clk 0:00:07.6]} 46... Kf7 {[%clk 0:00:19.5]} 47.
Nxd7 {[%clk 0:00:05.6]} 47... Kxe6 {[%clk 0:00:20.3]} 48. Nf8+ {[%clk
0:00:07.1]} 48... Kf7 {[%clk 0:00:20.5]} 49. Nd7 {[%clk 0:00:05.6]} 49... Nc1
{[%clk 0:00:20.4]} 50. b4 {[%clk 0:00:05.3]} 50... Nb3 {[%clk 0:00:19.8]} 51.
Kf2 {[%clk 0:00:04.9]} 51... Ke7 {[%clk 0:00:19.6]} 52. Ne5 {[%clk 0:00:05.3]}
52... Ke6 {[%clk 0:00:20.8]} 53. Nd3 {[%clk 0:00:05.9]} 53... Ba6 {[%clk
0:00:20.5]} 54. b5 {[%clk 0:00:06.3]} 54... Bb7 {[%clk 0:00:21]} 55. Ke3 {[%clk
0:00:08.2]} 55... Nc5 {[%clk 0:00:21.3]} 56. Nb4 {[%clk 0:00:07.9]} 56... Na4
{[%clk 0:00:21.2]} 57. Kd4 {[%clk 0:00:08.7]} 57... Nb2 {[%clk 0:00:21.6]} 58.
Nc2 {[%clk 0:00:09.4]} 58... g4 {[%clk 0:00:20.9]} 59. f4 {[%clk 0:00:09.4]}
59... h4 {[%clk 0:00:21.4]} 60. Ne3 {[%clk 0:00:10]} 60... h3 {[%clk 0:00:20]}
61. gxh3 {[%clk 0:00:10.7]} 61... gxh3 {[%clk 0:00:21.9]} 62. Ng4 {[%clk
0:00:10.2]} 62... Nd1 {[%clk 0:00:21.3]} 63. f5+ {[%clk 0:00:10.1]} 63... Kf7
{[%clk 0:00:21.4]} 64. e5 {[%clk 0:00:08.4]} 64... Bf3 {[%clk 0:00:16.3]} 65.
e6+ {[%clk 0:00:09.2]} 65... Ke7 {[%clk 0:00:16.2]} 66. Nh2 {[%clk 0:00:11.1]}
66... Be2 {[%clk 0:00:13.7]} 67. Ke5 {[%clk 0:00:10]} 67... Bxc4 {[%clk
0:00:14.1]} 68. f6+ {[%clk 0:00:11.1]} 68... Kf8 {[%clk 0:00:10.3]} 69. Ng4
{[%clk 0:00:03.5]} 69... Ne3 {[%clk 0:00:10.3]} 70. Nh2 {[%clk 0:00:02.6]} 70...
Nf1 {[%clk 0:00:08.2]} 0-1